bitfinex-derivatives/quotes_ETHF0:USTF0_20241105
["timestamp","ask_amount","ask_price","bid_price","bid_amount"]
[1730768737523,3.24804501,2400.5,2400.1,0.41691]
[1730768737524,0.41689,2400.3,2400.1,0.41691]
[1730768737729,40.8,2400.2,2400.0,4.10782]
[1730768737925,3.2078,2400.5,2400.0,0.90002]
[1730768738124,0.4169,2400.2,2400.0,0.90002]
[1730768738423,3.2078,2400.5,2400.0,0.90002]
[1730768738728,3.2078,2400.8,2400.4,0.41686]
[1730768738937,0.41682,2400.7,2400.4,0.41686]
[1730768739229,3.2078,2400.8,2400.7,0.41681]
[1730768740424,3.2078,2400.8,2400.4,0.9272]
[1730768740425,3.2078,2400.8,2400.6,0.41682]
[1730768740731,3.2078,2400.8,2400.7,0.41681]
[1730768741225,3.62455,2401.1,2400.8,0.41679]
[1730768741626,0.41676,2401.0,2400.9,0.4599]
[1730768741929,3.2078,2401.1,2400.9,0.4599]
[1730768742127,0.41679,2400.9,2400.5,0.41684]
[1730768742323,3.2078,2401.1,2400.5,0.86115]
[1730768742524,0.41681,2400.7,2400.5,0.86115]
[1730768742828,0.41681,2400.7,2400.5,0.4443]
[1730768743131,3.2078,2401.1,2400.5,0.4443]
[1730768743519,0.41682,2400.7,2400.5,0.4443]
[1730768743735,3.2078,2401.1,2400.5,0.86115]
[1730768744033,0.41681,2400.8,2400.5,0.86115]
[1730768744221,0.41678,2400.9,2400.6,0.41681]
[1730768744423,3.2078,2401.1,2400.5,0.4443]
[1730768744721,3.2078,2401.1,2400.5,0.86115]
[1730768744722,0.41682,2400.7,2400.5,0.86115]
[1730768745231,1.281,2401.0,2400.5,0.4443]
[1730768745419,0.41683,2400.6,2400.5,0.4443]
[1730768745625,1.281,2401.0,2400.5,0.86115]
[1730768745626,0.41682,2400.7,2400.5,0.86115]
[1730768745826,0.41681,2400.7,2400.5,0.86114]
[1730768746226,1.281,2401.0,2400.5,0.4443]
[1730768746528,0.41683,2400.6,2400.5,0.4443]
[1730768747830,0.41681,2400.7,2400.5,0.86113]
[1730768748039,0.41681,2400.8,2400.5,0.4443]
[1730768748327,1.281,2401.0,2400.7,0.41681]
[1730768748328,0.41678,2400.9,2400.7,0.41681]
[1730768748534,1.281,2401.0,2400.7,0.41681]
[1730768748831,0.41678,2400.9,2400.6,0.41682]
[1730768749824,40.8,2401.3,2401.1,0.41673]
[1730768750028,40.8,2401.3,2400.8,0.41679]
[1730768750228,40.8,2401.3,2401.2,0.41672]
[1730768750824,1.25043,2402.1,2401.4,0.41669]
[1730768750825,0.41665,2401.7,2401.4,0.41669]
[1730768751028,7.21037042,2401.5,2401.1,0.4378]
[1730768751225,0.41674,2401.1,2401.0,3.2078]
[1730768751431,0.41674,2401.1,2400.0,1.04231]
[1730768751432,3.2078,2401.1,2400.5,3.6699]
[1730768751630,0.41683,2400.6,2400.5,3.6699]
[1730768751826,0.41683,2400.6,2400.5,0.4621]
[1730768752025,0.41683,2400.6,2400.1,3.6714]
[1730768752026,4.00257042,2400.6,2400.1,3.6714]
[1730768752236,0.41686,2400.4,2400.2,0.41688]
[1730768752628,0.41686,2400.5,2400.2,0.41688]
[1730768752828,5.28357042,2400.6,2400.1,3.6714]
[1730768753129,5.28357042,2400.6,2400.1,3.2078]
[1730768753130,0.4169,2400.2,2400.1,3.2078]
[1730768753325,4.00257042,2400.3,2400.1,3.2078]
[1730768753529,4.41946042,2400.3,2400.1,3.2078]
[1730768753738,40.8,2400.2,2400.1,3.62471]
[1730768755128,40.8,2400.2,2400.1,0.41691]
[1730768755334,40.8,2400.2,2400.1,3.62471]
[1730768755528,0.41686,2400.4,2400.1,3.2078]
[1730768755729,5.28357042,2400.6,2400.1,3.2078]
[1730768755730,1.281,2400.6,2400.5,0.41685]
[1730768756438,1.69783,2400.6,2400.1,3.2078]
[1730768756627,1.69783,2400.6,2400.3,0.41687]
[1730768756628,40.8,2400.5,2400.3,0.41687]
[1730768757642,1.69783,2400.6,2400.4,0.41686]
[1730768758040,1.281,2400.6,2400.4,0.41686]
[1730768758644,40.8,2400.5,2400.4,0.41686]
[1730768759034,40.8,2400.5,2400.3,0.5052]
[1730768759235,40.8,2400.5,2400.4,0.41686]
[1730768759935,1.281,2400.6,2400.5,0.41685]
[1730768760140,1.69784,2400.6,2400.4,0.41685]
[1730768760328,1.281,2400.6,2400.3,0.5052]
[1730768760532,1.281,2400.6,2400.5,0.41685]
[1730768760533,42.081,2400.6,2400.5,0.41685]
[1730768762429,45.33361537,2400.6,2399.7,5.82372758]
[1730768762639,3.25261537,2400.4,2399.8,0.4933]
[1730768762847,0.41693,2400.0,2399.8,0.4933]
[1730768763237,3.25261537,2400.1,2399.8,0.4933]
[1730768763540,0.41693,2400.0,2399.8,0.91026]
[1730768764634,3.66954537,2400.1,2399.9,0.87905]
[1730768765032,40.8,2400.6,2399.9,0.4621]
[1730768765232,0.41687,2400.4,2400.2,0.41689]
[1730768765539,0.4169,2400.2,2400.1,0.41692]
[1730768765733,0.41694,2400.0,2399.8,4.11806]
[1730768765935,0.41694,2400.0,2399.8,0.91026]
[1730768766443,6.46041537,2400.4,2399.8,3.7011]
[1730768766741,0.4169,2400.2,2400.0,0.41692]
[1730768766937,6.46041537,2400.4,2399.8,3.7011]
[1730768767138,0.41689,2400.3,2400.1,0.41691]
[1730768767338,6.46041537,2400.4,2400.2,0.41688]
[1730768767339,6.87728537,2400.4,2400.2,0.41688]
[1730768767536,6.46041537,2400.4,2400.3,0.41688]
[1730768768138,6.87728537,2400.4,2400.2,0.41689]
[1730768768444,6.87728537,2400.4,2400.3,0.4978]
[1730768768637,3.66948537,2400.4,2400.3,0.4978]
[1730768768940,3.66948537,2400.4,2400.3,0.91468]
[1730768769134,3.66948537,2400.4,2400.3,0.4978]
[1730768770945,3.25261537,2400.4,2400.3,0.91468]
[1730768771252,3.25261537,2400.4,2400.3,1.0684003]
[1730768771642,3.25261537,2400.4,2400.3,1.4852803]
[1730768772147,41.21684,2400.6,2400.4,0.41685]
[1730768772445,41.21684,2400.6,2400.5,0.5706003]
[1730768773347,41.21683,2400.6,2400.5,1.90223718]
[1730768773648,41.21683,2400.6,2400.4,2.00442758]
[1730768773942,40.8,2400.6,2400.5,1.4866381]
[1730768774143,40.8,2400.6,2400.5,4.39774799]
[1730768774447,40.8,2400.6,2400.5,4.94634261]
[1730768775446,41.21683,2400.6,2400.5,3.31597041]
[1730768775641,41.21683,2400.6,2400.5,4.94634261]
[1730768775947,40.8,2400.6,2400.5,4.94634261]
[1730768776345,40.8,2400.6,2400.5,4.94907884]
[1730768777053,3.4168,2401.3,2400.6,1.04204]
[1730768777352,3.4168,2401.3,2401.1,1.08881621]
[1730768777353,0.41672,2401.2,2401.1,1.08881621]
[1730768777649,45.38152,2401.2,2401.1,2.58122985]
[1730768777847,45.38152,2401.2,2401.1,1.49249747]
[1730768778450,45.38152,2401.2,2401.1,2.58122985]
[1730768778645,45.38152,2401.2,2401.1,1.49249747]
[1730768778846,45.44402,2401.2,2401.1,1.49249747]
[1730768779847,41.21672,2401.2,2401.1,1.49249747]
[1730768780043,48.63413537,2401.2,2401.1,1.49249747]
[1730768780551,44.46933537,2401.2,2401.1,1.90923747]
[1730768780745,44.46933537,2401.2,2401.1,1.49249747]
[1730768781146,48.63413537,2401.2,2401.1,0.57403749]
[1730768781644,44.46933537,2401.2,2401.1,0.57403749]
[1730768781949,44.46933537,2401.2,2401.1,1.49288852]
[1730768782162,44.05261537,2401.2,2401.1,1.90962852]
[1730768782455,44.46933537,2401.2,2401.1,1.49288852]
[1730768783255,44.46933537,2401.2,2401.1,0.57403749]
[1730768783557,48.63413537,2401.2,2401.1,0.57403749]
[1730768783856,0.41679,2400.8,2400.7,0.9689]
[1730768784063,0.41678,2400.9,2400.7,2.87860531]
[1730768784361,0.41678,2400.9,2400.8,0.57419435]
[1730768784964,0.41678,2400.9,2400.8,0.57758887]
[1730768786065,4.58158,2400.9,2400.8,0.57758887]
[1730768786255,4.1648,2400.9,2400.6,3.2078]
[1730768786559,3.25261537,2401.0,2400.7,0.57761333]
[1730768786560,0.41679,2400.8,2400.7,0.57761333]
[1730768786954,7.83500537,2400.8,2400.7,0.57761333]
[1730768787165,7.83500537,2400.8,2400.4,0.4823]
[1730768787166,7.41821537,2400.8,2400.4,0.4823]
[1730768787358,0.41685,2400.6,2400.5,0.57766525]
[1730768788456,0.41685,2400.6,2400.4,0.89916]
[1730768789156,3.25261537,2400.8,2400.4,0.89916]
[1730768789351,0.41685,2400.5,2400.4,0.89916]
[1730768789656,0.41685,2400.5,2400.4,1.47689626]
[1730768789859,0.41685,2400.5,2400.4,1.06003626]
[1730768792454,7.83506537,2400.5,2400.4,0.57773626]
[1730768792656,7.83506537,2400.5,2400.0,0.41693]
[1730768792657,0.41692,2400.1,2400.0,0.9715]
[1730768792957,0.41691,2400.2,2400.0,1.96624214]
[1730768793152,44.46953537,2400.1,2400.0,0.48]
[1730768793358,0.41697,2399.8,2399.7,0.4915]
[1730768793560,0.41697,2399.8,2399.7,1.54922439]
[1730768793960,41.21697,2399.8,2399.7,1.54922439]
[1730768794159,41.21697,2399.8,2399.7,0.9715]
[1730768794353,40.8,2399.8,2399.5,3.2078]
[1730768794558,0.417,2399.6,2399.5,3.2078]
[1730768795059,0.417,2399.6,2399.4,0.4976]
[1730768795060,3.25261537,2399.7,2399.4,0.4976]
[1730768795259,0.41702,2399.5,2399.4,0.4976]
[1730768797266,0.41701,2399.6,2399.4,0.91463]
[1730768797463,40.8,2399.8,2399.4,0.4976]
[1730768797661,0.41699,2399.7,2399.5,0.41701]
[1730768798166,0.41702,2399.5,2399.4,0.4976]
[1730768798663,3.25261537,2399.7,2399.4,0.4976]
[1730768799063,0.41702,2399.5,2399.4,0.4976]
[1730768799261,3.25261537,2399.7,2399.4,0.4976]
[1730768799262,0.41701,2399.6,2399.4,0.91463]
[1730768799458,0.41701,2399.6,2399.4,0.4976]
[1730768799663,3.25261537,2399.7,2399.4,0.4976]
[1730768799861,0.41702,2399.5,2399.4,0.4976]
[1730768800371,3.25261537,2399.7,2399.4,0.4976]
[1730768800662,40.8,2399.8,2399.5,0.41702]
[1730768800663,41.21698,2399.8,2399.5,0.41702]
[1730768801065,41.21698,2399.8,2399.4,0.4976]
[1730768801269,3.62476,2399.9,2399.7,0.41699]
[1730768801570,3.62476,2399.9,2399.8,0.48]
[1730768801871,41.21696,2399.9,2399.8,0.48]
[1730768804858,51.42761537,2399.9,2399.4,3.7054]
[1730768805065,0.41702,2399.6,2399.4,3.7054]
[1730768805566,0.41702,2399.5,2399.4,3.7054]
[1730768806070,0.41702,2399.6,2399.4,3.7054]
[1730768806270,0.41702,2399.6,2399.4,4.12244]
[1730768806661,0.41699,2399.7,2399.5,0.41701]
[1730768806861,47.26041537,2399.9,2399.5,0.41701]
[1730768807068,0.41697,2399.8,2399.5,0.41701]
[1730768807271,0.41699,2399.7,2399.5,0.41701]
[1730768808265,44.0078,2399.9,2399.4,3.7054]
[1730768808460,44.0078,2399.9,2399.4,0.4976]
[1730768808672,0.41699,2399.7,2399.5,0.41701]
[1730768809173,47.26041537,2399.9,2399.4,0.91463]
[1730768809365,0.417,2399.6,2399.4,0.91463]
[1730768809671,47.26041537,2399.9,2399.4,0.4976]
[1730768809872,0.41702,2399.5,2399.4,0.4976]
[1730768810074,47.26041537,2399.9,2399.4,0.4976]
[1730768810267,47.26041537,2399.9,2399.5,3.62481]
[1730768810268,0.41699,2399.7,2399.5,3.62481]
[1730768810770,0.417,2399.6,2399.5,3.2078]
[1730768811472,47.26041537,2399.9,2399.5,3.62481]
[1730768811473,0.41699,2399.7,2399.5,3.62481]
[1730768811674,0.417,2399.7,2399.5,3.62481]
[1730768811867,47.26041537,2399.9,2399.5,3.2078]
[1730768812063,0.417,2399.6,2399.5,3.2078]
[1730768812373,47.26041537,2399.9,2399.5,3.2078]
[1730768812671,47.26041537,2399.9,2399.6,0.417]
[1730768812868,47.26041537,2399.9,2399.5,3.2078]
[1730768813169,0.41697,2399.8,2399.6,0.41699]
[1730768813473,47.26041537,2399.9,2399.5,3.2078]
[1730768813864,47.26041537,2399.9,2399.6,0.417]
[1730768813865,0.41698,2399.8,2399.6,0.417]
[1730768814367,0.417,2399.7,2399.5,3.62482]
[1730768814570,0.417,2399.6,2399.5,3.2078]
[1730768814970,0.417,2399.6,2399.5,7.375]
[1730768815159,0.41699,2399.7,2399.5,3.62481]
[1730768815364,47.67737537,2399.9,2399.7,0.41698]
[1730768815765,47.67737537,2399.9,2399.8,0.5058]
[1730768817173,44.46957537,2399.9,2399.8,0.5058]
[1730768818669,40.8,2399.9,2399.8,0.5058]
[1730768818873,40.8,2399.9,2399.8,0.92277]
[1730768819179,40.8,2399.9,2399.8,5.08997]
[1730768819486,40.8,2399.9,2399.8,5.56297]
[1730768819976,40.8,2399.9,2399.8,1.39577]
[1730768820372,41.21695,2399.9,2399.8,1.39577]
[1730768820969,40.8,2399.9,2399.8,1.39577]
[1730768821169,40.8,2399.9,2399.8,5.56297]
[1730768822182,0.41686,2400.5,2400.4,0.41686]
[1730768822368,1.343,2400.8,2400.2,3.2078]
[1730768822678,1.343,2400.8,2400.4,0.41686]
[1730768822679,0.41685,2400.5,2400.4,0.41686]
[1730768823470,40.8,2400.8,2400.7,0.41681]
[1730768823673,40.8,2400.8,2400.5,3.2078]
[1730768823873,0.41682,2400.7,2400.6,0.4664]
[1730768824579,40.8,2400.8,2400.6,0.4664]
[1730768824875,41.2168,2400.8,2400.6,0.88322]
[1730768826080,40.8,2400.8,2400.7,0.41681]
[1730768826281,40.8,2400.8,2400.7,4.58241]
[1730768826582,0.41681,2400.7,2400.6,0.4664]
[1730768826780,0.41681,2400.7,2400.6,0.88323]
[1730768826986,0.41681,2400.7,2400.6,0.4664]
[1730768827883,0.41681,2400.7,2400.2,3.2078]
[1730768827884,4.1656,2400.7,2400.2,3.2078]
[1730768828075,0.41688,2400.3,2400.2,3.6651]
[1730768829483,0.41688,2400.3,2400.2,0.4573]
[1730768829781,4.58328,2400.3,2400.2,0.4573]
[1730768830189,0.41688,2400.3,2400.2,0.4573]
[1730768830491,0.41683,2400.6,2400.4,0.41686]
[1730768830883,45.39561537,2400.8,2400.2,0.4573]
[1730768831091,40.8,2400.8,2400.4,3.2078]
[1730768831284,44.05261537,2400.8,2400.3,0.56966461]
[1730768831588,44.05261537,2400.8,2400.2,0.4573]
[1730768831589,0.41684,2400.6,2400.4,0.41685]
[1730768832584,0.41684,2400.6,2400.5,0.41685]
[1730768832990,0.41684,2400.6,2400.3,0.41688]
[1730768833190,0.41685,2400.5,2400.4,0.41686]
[1730768833394,44.05261537,2400.8,2400.2,0.92]
[1730768833586,0.41684,2400.6,2400.5,0.41685]
[1730768833786,44.05261537,2400.8,2400.2,0.92]
[1730768834187,0.41684,2400.6,2400.5,0.41684]
[1730768834389,0.41683,2400.6,2400.5,0.41683]
[1730768834787,44.46941537,2400.8,2400.7,0.41681]
[1730768834990,0.41682,2400.7,2400.6,0.41682]
[1730768835692,40.8,2400.8,2400.7,0.41681]
[1730768835886,3.25261537,2401.5,2400.8,1.04198]
[1730768836083,0.41666,2401.6,2401.5,0.41667]
[1730768836290,3.25261537,2401.7,2401.2,3.2078]
[1730768836587,41.21667,2401.6,2401.5,0.41667]
[1730768836889,40.8,2401.6,2401.5,0.41667]
[1730768837485,41.21667,2401.6,2401.5,0.41667]
[1730768837991,40.8,2401.6,2401.5,0.41667]
[1730768838686,6.46041537,2402.1,2401.5,3.62447]
[1730768838883,0.41659,2402.0,2401.9,0.4166]
[1730768839089,1.343,2402.1,2401.5,3.2078]
[1730768839396,41.21659,2402.0,2401.8,0.41661]
[1730768839784,40.8,2402.0,2401.9,0.9234]
[1730768840083,40.8,2402.0,2401.9,1.4068]
[1730768840288,0.41651,2402.5,2402.2,0.41654]
[1730768840482,4.5508,2402.7,2401.9,0.9902]
[1730768840687,0.41653,2402.4,2402.1,0.41656]
[1730768841389,44.05261537,2402.6,2401.9,0.9902]
[1730768841590,0.41651,2402.5,2402.2,0.41654]
[1730768841789,44.05261537,2402.6,2402.3,0.41653]
[1730768841986,44.05261537,2402.6,2401.9,0.9902]
[1730768841987,40.8,2402.6,2402.4,0.41651]
[1730768842180,40.8,2402.6,2402.5,0.4165]
[1730768842793,3.2078,2403.0,2402.5,5.1597]
[1730768842996,4.96615,2403.4,2403.1,0.41639]
[1730768843192,4.5498,2403.4,2402.7,3.2078]
[1730768843388,0.41642,2403.0,2402.7,3.2078]
[1730768843884,0.41641,2403.1,2402.7,3.62425]
[1730768844089,0.41641,2403.1,2402.8,0.41645]
[1730768844286,0.41641,2403.1,2402.7,3.2078]
[1730768844490,0.41642,2403.0,2402.7,3.62425]
[1730768844795,40.8,2403.3,2402.7,3.2078]
[1730768844995,0.41641,2403.1,2402.8,0.41645]
[1730768845597,40.8,2403.3,2402.7,3.62425]
[1730768845800,0.41641,2403.1,2402.7,3.62425]
[1730768846196,40.8,2403.3,2402.7,3.2078]
[1730768846587,0.41642,2403.0,2402.7,0.41646]
[1730768848685,3.2078,2403.1,2402.5,1.4773]
[1730768848886,3.6242,2403.1,2402.5,1.4773]
[1730768849094,3.2078,2403.1,2402.6,3.2078]
[1730768849292,0.41644,2402.9,2402.6,3.62427]
[1730768849492,0.41644,2402.9,2402.5,1.4773]
[1730768849493,0.41647,2402.7,2402.5,0.9973]
[1730768849791,7.20719149,2403.1,2402.5,0.9973]
[1730768849792,0.41641,2403.0,2402.5,0.9973]
[1730768849991,0.41647,2402.7,2402.5,0.9973]
[1730768850595,0.41647,2402.7,2402.5,1.4138]
[1730768851503,7.20719149,2403.1,2402.5,0.9973]
[1730768851801,0.41648,2402.6,2402.5,0.9973]
[1730768852005,0.41648,2402.6,2402.5,0.5066]
[1730768854597,3.2078,2402.9,2402.5,0.5066]
[1730768854793,3.99939149,2403.1,2402.5,0.5066]
[1730768855006,0.41648,2402.7,2402.5,0.9231]
[1730768855299,0.41648,2402.7,2402.5,0.5066]
[1730768855696,41.21648,2402.6,2402.5,0.5066]
[1730768856004,40.8,2402.6,2402.5,4.1309]
[1730768856297,3.2078,2403.2,2402.5,4.1309]
[1730768856298,0.4164,2403.1,2402.8,0.41643]
[1730768856600,40.8,2403.0,2402.9,0.4836]
[1730768856804,41.21641,2403.0,2402.9,0.4836]
[1730768862607,40.8,2403.0,2402.9,0.90003]
[1730768863103,3.2078,2403.3,2402.9,4.6452]
[1730768863302,3.2078,2403.3,2403.0,0.4749]
[1730768863503,0.4164,2403.1,2403.0,0.4749]
[1730768863704,3.2078,2403.3,2403.0,0.8913]
[1730768863705,0.41639,2403.2,2403.0,0.8913]
[1730768864106,3.2078,2403.3,2403.0,0.4749]
[1730768864507,0.4164,2403.1,2403.0,0.4749]
[1730768865113,0.41638,2403.2,2403.0,0.4749]
[1730768865305,3.2078,2403.3,2403.0,0.4749]
[1730768865611,0.4164,2403.1,2403.0,0.89131]
[1730768867213,0.41639,2403.2,2403.1,0.41639]
[1730768867806,0.4164,2403.1,2403.0,0.89131]
[1730768868211,0.41633,2403.5,2403.4,0.41633]
[1730768868405,41.21632,2403.6,2403.5,0.41633]
[1730768868611,41.21631,2403.6,2403.5,0.41633]
[1730768869115,40.8,2403.6,2403.5,0.41633]
[1730768869308,40.8,2403.6,2403.5,8.31619637]
[1730768869616,4.4573,2404.3,2403.8,0.41627]
[1730768869617,0.41627,2403.9,2403.8,0.41627]
[1730768870110,41.21627,2403.9,2403.8,0.41627]
[1730768870514,0.41627,2403.8,2403.7,3.62408]
[1730768870813,0.41627,2403.8,2403.7,3.2078]
[1730768871109,0.41631,2403.6,2403.5,0.4902]
[1730768873709,0.41631,2403.6,2403.2,0.41636]
[1730768873710,0.41636,2403.3,2403.2,0.93886]
[1730768873916,0.41636,2403.3,2403.2,0.5225]
[1730768874913,4.28935553,2403.6,2403.1,3.6977]
[1730768875121,0.41641,2403.0,2402.9,0.5225]
[1730768875414,41.21641,2403.0,2402.9,0.5225]
[1730768876604,41.21641,2403.0,2402.9,0.93893]
[1730768876806,41.21641,2403.0,2402.9,0.5225]
[1730768877006,3.2078,2403.4,2402.9,0.5225]
[1730768877007,0.4164,2403.1,2402.9,4.6841]
[1730768877206,3.2078,2403.4,2403.1,0.41639]
[1730768877207,0.41639,2403.2,2403.1,0.41639]
[1730768877615,41.21639,2403.2,2403.1,0.41639]
[1730768877806,0.4164,2403.1,2403.0,0.4164]
[1730768878006,0.41641,2403.1,2403.0,0.41641]
[1730768878210,0.41641,2403.1,2403.0,0.98991175]
[1730768878412,0.41641,2403.1,2402.9,0.5225]
[1730768878413,0.41641,2403.0,2402.9,0.93892]
[1730768878617,0.41641,2403.0,2402.9,1.51242685]
[1730768878816,0.4164,2403.1,2403.0,0.41641]
[1730768879213,0.4164,2403.1,2403.0,0.99038891]
[1730768879715,0.4164,2403.1,2403.0,0.57397891]
[1730768879915,0.4164,2403.1,2403.0,0.99038891]
[1730768880115,0.4164,2403.1,2403.0,0.57397891]
[1730768880318,41.21639,2403.2,2403.0,0.57397891]
[1730768880515,41.21639,2403.2,2403.1,0.57397891]
[1730768880716,41.21639,2403.2,2402.9,0.5225]
[1730768880717,40.8,2403.2,2402.9,0.5225]
[1730768881016,0.41641,2403.0,2402.9,0.5225]
[1730768881219,0.41641,2403.0,2402.9,2.01779294]
[1730768881620,0.41641,2403.0,2402.9,0.57511267]
[1730768881822,0.41641,2403.0,2402.9,1.49537492]
[1730768882616,0.41641,2403.0,2402.9,2.5841073]
[1730768882921,0.41641,2403.0,2402.9,1.49537492]
[1730768883221,40.8,2403.2,2402.8,1.50517238]
[1730768883409,40.8,2403.2,2402.9,1.4971372]
[1730768883717,4.2487,2403.4,2402.9,1.4971372]
[1730768883718,0.41636,2403.3,2403.0,1.08873238]
[1730768883911,0.41637,2403.3,2403.2,0.41638]
[1730768884117,0.41637,2403.3,2403.2,1.49717272]
[1730768884420,41.21637,2403.3,2403.2,1.49717272]
[1730768884622,41.21637,2403.3,2403.2,2.5859051]
[1730768884821,41.21637,2403.3,2403.2,1.49717272]
[1730768885437,45.37717,2403.3,2403.2,1.49717272]
[1730768885722,45.37717,2403.3,2403.2,0.57585464]
[1730768885920,45.37717,2403.3,2403.2,0.44885464]
[1730768886124,0.41645,2402.8,2402.7,0.4807]
[1730768886418,0.41645,2402.8,2402.7,1.40343264]
[1730768887717,41.21645,2402.8,2402.7,1.40343264]
[1730768887917,41.21645,2402.8,2402.7,0.92273264]
[1730768888722,41.21645,2402.8,2402.6,1.08873238]
[1730768888723,44.0078,2402.8,2402.5,1.08873238]
[1730768888922,0.41648,2402.6,2402.5,1.08873238]
[1730768889224,0.4165,2402.5,2402.4,1.98595238]
[1730768889431,0.4165,2402.5,2402.4,1.39694132]
[1730768889819,44.0078,2402.8,2402.5,0.41649]
[1730768889820,0.41646,2402.7,2402.5,0.41649]
[1730768890019,3.24855553,2403.1,2402.5,0.41649]
[1730768890020,3.2078,2403.1,2402.6,0.91620652]
[1730768890220,1.04095,2403.2,2402.7,0.41646]
[1730768890514,4.86276739,2403.3,2402.7,0.41646]
[1730768890515,0.41644,2402.9,2402.8,0.91611518]
[1730768890718,0.41644,2402.9,2402.8,1.33256518]
[1730768891017,0.41642,2403.0,2402.8,0.91611518]
[1730768891214,41.2164,2403.1,2402.9,0.41642]
[1730768891531,41.2164,2403.1,2403.0,0.41641]
[1730768891722,41.2164,2403.1,2403.0,1.33787066]
[1730768892119,41.2164,2403.1,2403.0,0.41641]
[1730768892319,3.2078,2403.4,2403.0,4.1616]
[1730768892320,0.41635,2403.4,2403.0,4.1616]
[1730768892626,0.41635,2403.4,2403.2,0.41637]
[1730768893423,40.8,2403.6,2403.1,0.5235]
[1730768893626,0.41634,2403.4,2403.2,0.41636]
[1730768894335,0.41646,2402.7,2402.6,4.89958913]
[1730768894520,0.4165,2402.5,2402.4,1.63322432]
[1730768894718,0.4165,2402.5,2402.3,0.4977]
[1730768894719,0.41651,2402.5,2402.3,0.91423]
[1730768894926,40.8,2402.4,2402.3,0.91423]
[1730768895122,40.8,2402.4,2402.3,0.4977]
[1730768895432,40.8,2402.4,2402.3,0.91423]
[1730768896332,40.8,2402.4,2402.3,0.4977]
[1730768896639,3.30635553,2403.3,2402.3,0.4977]
[1730768896640,3.2078,2403.1,2402.5,1.04123]
[1730768896823,0.41643,2403.0,2402.8,0.41644]
[1730768897029,0.41643,2403.0,2402.9,0.4977]
[1730768898525,0.4165,2402.5,2402.4,0.41651]
[1730768898736,0.4165,2402.5,2402.4,1.0565451]
[1730768900336,0.4165,2402.5,2402.4,1.4730651]
[1730768900528,41.2165,2402.5,2402.4,1.4730651]
[1730768900727,41.2165,2402.5,2402.4,0.4806]
[1730768900928,41.2165,2402.5,2402.4,1.05663885]
[1730768901628,41.2165,2402.5,2402.4,1.47315885]
[1730768902432,41.2165,2402.5,2402.4,1.05663885]
[1730768903525,41.2165,2402.5,2402.4,1.47315885]
[1730768904736,41.2165,2402.5,2402.4,0.89712]
[1730768904925,41.2165,2402.5,2402.4,1.4730101]
[1730768905124,0.4165,2402.5,2402.4,1.4730101]
[1730768905732,0.4165,2402.5,2402.4,1.0564901]
[1730768905927,0.4165,2402.5,2402.4,1.4730101]
[1730768906430,40.8,2402.8,2402.4,1.0564901]
[1730768906635,0.41647,2402.7,2402.6,0.41647]
[1730768907530,40.8,2402.8,2402.7,0.41646]
[1730768907733,3.2499,2403.7,2402.8,0.41645]
[1730768907925,4.5228,2403.7,2402.9,1.5409]
[1730768908131,4.5228,2403.7,2403.1,3.2078]
[1730768908132,40.8,2403.6,2403.1,3.2078]
[1730768908330,0.41637,2403.3,2403.2,0.41637]
[1730768910436,0.41637,2403.3,2403.1,3.2078]
[1730768910437,40.8,2403.6,2403.1,3.2078]
[1730768910739,0.41635,2403.4,2403.3,0.41635]
[1730768911328,40.8,2403.6,2403.1,3.2078]
[1730768911734,41.21632,2403.6,2403.5,0.41633]
[1730768911929,40.8,2403.6,2403.1,3.2078]
[1730768912231,0.41633,2403.5,2403.4,0.41634]
[1730768914738,40.8,2403.6,2403.1,3.2078]
[1730768914932,0.41633,2403.5,2403.3,0.41635]
[1730768915132,0.41638,2403.2,2402.9,2.52777848]
[1730768915441,0.41641,2403.0,2402.9,1.94502]
[1730768915741,0.41641,2403.0,2402.9,2.52064049]
[1730768916042,0.41641,2403.0,2402.9,1.08192049]
[1730768916340,0.41641,2403.0,2402.9,0.5063]
[1730768917436,41.21641,2403.0,2402.9,0.5063]
[1730768917936,0.41643,2402.9,2402.8,3.2078]
[1730768918133,40.8,2403.0,2402.8,3.2078]
[1730768918537,41.21641,2403.0,2402.9,0.57940667]
[1730768919038,40.8,2403.0,2402.8,3.62423]
[1730768919234,0.41643,2402.9,2402.8,3.62423]
[1730768919429,0.41643,2402.9,2402.8,3.78731941]
[1730768919630,0.41643,2402.9,2402.8,4.20376941]
[1730768920438,0.41643,2402.9,2402.8,3.78731941]
[1730768920935,0.41643,2402.9,2402.8,4.20376941]
[1730768921437,0.41643,2402.9,2402.8,3.78731941]
[1730768922136,0.41651,2402.5,2402.4,0.41651]
[1730768922337,0.41651,2402.5,2402.4,0.99612444]
[1730768923135,0.41651,2402.5,2402.4,0.99613444]
[1730768923444,0.41649,2402.6,2402.5,0.41649]
[1730768923741,0.41649,2402.6,2402.5,0.99610444]
[1730768924041,0.41649,2402.6,2402.5,0.57961444]
[1730768924246,3.2078,2402.7,2402.3,0.91942]
[1730768924540,1.12109,2402.9,2402.4,0.58261276]
[1730768924738,0.4165,2402.5,2402.4,0.41651]
[1730768924933,0.4165,2402.5,2402.4,0.58261297]
[1730768925132,0.4165,2402.5,2402.4,0.99913297]
[1730768925437,0.4165,2402.5,2402.4,0.58261297]
[1730768925736,0.4165,2402.5,2402.4,0.99913297]
[1730768926143,1.12109,2402.9,2402.3,0.5029]
[1730768926439,1.12109,2402.9,2402.4,0.58259328]
[1730768926440,0.4165,2402.5,2402.4,0.58259328]
[1730768926739,0.4165,2402.5,2402.4,0.99911328]